bitfinex/quotes_SOLUSD_20240906
["timestamp","ask_amount","ask_price","bid_price","bid_amount"]
[1725582183510,7.7055,129.78,129.72,7.7088]
[1725582183688,20.0,129.77,129.72,7.7088]
[1725582183886,20.0,129.77,129.73,7.7081]
[1725582186713,20.0,129.77,129.74,7.7075]
[1725582186915,7.7047,129.79,129.74,7.7075]
[1725582186916,20.0,129.78,129.75,1.5411684]
[1725582187207,20.0,129.78,129.74,1.54114556]
[1725582187400,20.0,129.78,129.73,26.978]
[1725582188304,20.0,129.78,129.74,9.24889034]
[1725582188910,20.0,129.78,129.74,7.7076]
[1725582189509,20.0,129.78,129.74,9.24877839]
[1725582192313,20.0,129.78,129.74,7.7076]
[1725582196308,27.7053,129.78,129.74,7.7076]
[1725582197002,7.706,129.77,129.73,40.07200194]
[1725582197596,20.0,129.78,129.73,32.36400194]
[1725582197802,20.0,129.8,129.74,7.7073]
[1725582198003,45.0,129.79,129.74,7.7073]
[1725582198203,20.0,129.78,129.74,7.7073]
[1725582199301,27.7054,129.78,129.74,7.7073]
[1725582201509,7.7059,129.77,129.73,40.07210194]
[1725582202026,7.7059,129.77,129.73,26.978]
[1725582202729,27.7056,129.78,129.73,26.978]
[1725582202926,27.7056,129.78,129.74,1.54141583]
[1725582203622,20.0,129.78,129.75,7.7071]
[1725582203823,20.0,129.78,129.76,1.54111285]
[1725582204418,20.0,129.78,129.75,7.7071]
[1725582204813,20.0,129.78,129.75,1.54115611]
[1725582205624,27.7053,129.78,129.74,20.80150194]
[1725582210032,20.0,129.78,129.73,48.8452]
[1725582210206,45.0,129.77,129.73,19.2699]
[1725582210409,7.7078,129.74,129.71,19.2737]
[1725582210631,7.7073,129.75,129.71,26.9831]
[1725582211838,7.7073,129.75,129.71,28.52471194]
[1725582212128,7.7073,129.75,129.71,19.2737]
[1725582213038,7.7073,129.75,129.71,28.52479861]
[1725582214323,41.2496,129.79,129.73,19.2707]
[1725582214324,15.9478,129.79,129.73,19.2707]
[1725582214526,20.0,129.78,129.74,14.63531986]
[1725582214736,27.7057,129.78,129.74,14.63531986]
[1725582214938,27.7057,129.78,129.74,20.80130194]
[1725582215913,27.7057,129.78,129.74,22.34260372]
[1725582217538,27.7057,129.78,129.74,9.24850178]
[1725582217914,27.7057,129.78,129.75,1.54130253]
[1725582221843,20.0,129.78,129.76,1.54121862]
[1725582222011,20.0,129.81,129.76,1.54121862]
[1725582222831,20.0,129.81,129.74,32.36200194]
[1725582223343,7.7047,129.79,129.76,7.7063]
[1725582223514,20.0,129.78,129.76,7.7063]
[1725582224350,20.0,129.78,129.75,7.7069]
[1725582225723,27.7054,129.78,129.75,7.7069]
[1725582225925,27.7054,129.78,129.74,26.9753]
[1725582226241,27.7054,129.78,129.73,20.80230194]
[1725582226242,7.7065,129.76,129.73,20.80230194]
[1725582226432,7.7061,129.77,129.73,20.80230194]
[1725582226637,7.7061,129.77,129.73,22.3436646]
[1725582227151,7.7066,129.76,129.73,22.3436646]
[1725582227322,7.7062,129.77,129.73,9.24956266]
[1725582228233,7.7062,129.77,129.74,1.54134229]
[1725582228942,7.7062,129.77,129.73,9.24953858]
[1725582229134,7.7062,129.77,129.74,1.54134203]
[1725582229344,7.7062,129.77,129.74,9.24894203]
[1725582230141,7.7062,129.77,129.74,7.7076]
[1725582230521,7.7062,129.77,129.73,9.24934114]
[1725582230745,7.7062,129.77,129.73,7.708]
[1725582230929,7.7066,129.76,129.72,26.9808]
[1725582231124,20.0,129.78,129.72,26.9808]
[1725582231125,7.7072,129.75,129.72,26.9808]
[1725582231926,7.7072,129.75,129.72,19.2721]
[1725582232134,7.7072,129.75,129.72,26.9808]
[1725582232346,7.7066,129.76,129.73,1.54153176]
[1725582235749,7.7066,129.76,129.72,26.9808]
[1725582235957,7.7083,129.73,129.7,41.1424]
[1725582236148,7.7089,129.72,129.69,7.7104]
[1725582236452,35.6704,129.77,129.69,7.7104]
[1725582236453,7.7085,129.73,129.69,7.7104]
[1725582236649,7.7089,129.72,129.69,7.7104]
[1725582237249,45.0,129.71,129.68,1.54192849]
[1725582237454,7.7104,129.7,129.67,22.6751]
[1725582237757,6.7104,129.7,129.67,22.6751]
[1725582239032,7.7108,129.69,129.65,40.08900194]
[1725582239839,7.7113,129.68,129.65,19.2821]
[1725582240354,7.7109,129.69,129.66,1.54231815]
[1725582240555,20.0,129.68,129.66,1.54231815]
[1725582241642,20.0,129.68,129.64,22.6751]
[1725582241948,20.0,129.7,129.64,22.6751]
[1725582242134,45.0,129.69,129.64,22.6751]
[1725582242334,20.0,129.68,129.64,22.6751]
[1725582243342,20.0,129.68,129.64,30.3887]
[1725582243545,27.7114,129.68,129.64,30.3887]
[1725582243740,27.7114,129.68,129.65,1.54238846]
[1725582244743,20.0,129.68,129.65,9.25518846]
[1725582245855,16.4045,129.76,129.67,13.09410194]
[1725582246036,7.7084,129.73,129.69,7.7105]
[1725582246358,7.7084,129.73,129.7,7.71]
[1725582246663,7.7079,129.74,129.7,9.25179782]
[1725582247255,7.7083,129.73,129.7,9.25179782]
[1725582247634,7.7079,129.74,129.7,9.25179782]
[1725582247852,20.0,129.73,129.7,9.25179782]
[1725582248132,7.7079,129.74,129.7,9.25179782]
[1725582249553,20.0,129.73,129.7,9.25179782]
[1725582259928,20.0,129.73,129.71,9.25107323]
[1725582260131,16.4045,129.8,129.71,14.63587517]
[1725582260460,7.7061,129.77,129.73,7.708]
[1725582261557,7.7075,129.75,129.71,7.7091]
[1725582262148,7.7075,129.75,129.71,9.25079127]
[1725582262456,7.7077,129.74,129.7,44.60290555]
[1725582262656,7.7084,129.73,129.7,43.0613]
[1725582263539,7.7084,129.73,129.7,35.3514]
[1725582264065,7.7084,129.73,129.7,43.0614]
[1725582264258,7.7084,129.73,129.7,44.6031863]
[1725582265563,7.708,129.74,129.7,44.6031863]
[1725582265756,20.0,129.73,129.7,44.6031863]
[1725582267368,20.0,129.73,129.7,43.0614]
[1725582269167,20.0,129.73,129.7,44.60318486]
[1725582269855,20.0,129.73,129.7,43.0614]
[1725582270167,20.0,129.73,129.7,44.60318483]
[1725582271175,27.7083,129.73,129.7,44.60318483]
[1725582271474,27.7083,129.73,129.7,43.0614]
[1725582272045,27.7083,129.73,129.7,44.60318442]
[1725582272253,20.0,129.73,129.7,43.0614]
[1725582272460,20.0,129.73,129.7,44.60318276]
[1725582273048,19.2637,129.78,129.71,20.8140826]
[1725582273250,19.29206822,129.8,129.72,13.09410194]
[1725582273465,7.7063,129.77,129.73,9.24961227]
[1725582274472,20.0,129.76,129.73,9.24961227]
[1725582277376,20.0,129.76,129.74,9.24884637]
[1725582277956,20.0,129.77,129.74,9.24884637]
[1725582278158,27.706,129.77,129.74,7.7075]
[1725582278373,7.7074,129.75,129.72,19.271]
[1725582278560,7.7074,129.75,129.71,7.7092]
[1725582278873,7.7074,129.75,129.7,35.3514]
[1725582278874,7.7077,129.74,129.7,43.0611]
[1725582279072,7.7083,129.73,129.7,43.0611]
[1725582280369,7.708,129.74,129.7,43.0611]
[1725582280575,7.7073,129.75,129.71,9.25088846]
[1725582280780,27.7078,129.74,129.71,9.25088846]
[1725582280975,27.7078,129.74,129.71,7.7093]
[1725582281349,27.7078,129.74,129.7,43.0612]
[1725582282362,27.7078,129.74,129.71,1.54170556]
[1725582282676,27.7078,129.74,129.71,9.25110556]
[1725582283570,20.0,129.74,129.71,9.25108874]
[1725582285079,20.0,129.74,129.71,7.7094]
[1725582286563,20.0,129.74,129.71,9.25099619]
[1725582288087,20.0,129.74,129.71,7.7094]
[1725582288272,27.7078,129.74,129.71,7.7094]
[1725582289789,27.7078,129.74,129.7,43.0611]
[1725582290368,7.7083,129.73,129.7,43.0611]
[1725582292763,27.708,129.74,129.7,44.6028642]
[1725582294566,27.708,129.74,129.71,9.25116059]
[1725582295388,27.708,129.74,129.71,7.7094]
[1725582295691,27.708,129.74,129.7,43.0612]
[1725582297898,27.708,129.74,129.7,44.6029615]
[1725582298283,27.708,129.74,129.71,9.25116123]
[1725582299199,20.0,129.74,129.71,9.25116123]
[1725582299992,27.7077,129.74,129.71,9.25116123]
[1725582300504,7.7057,129.78,129.74,7.7073]
[1725582300677,20.0,129.77,129.74,9.24857446]
[1725582300999,7.705,129.79,129.76,7.7063]
[1725582301200,7.7043,129.8,129.77,1.54113669]
[1725582303494,7.7033,129.82,129.78,7.7053]
[1725582304000,15.4143,129.87,129.79,20.80231587]
[1725582304216,15.4143,129.87,129.81,7.7031]
[1725582304217,7.7013,129.85,129.81,7.7031]
[1725582304384,7.7018,129.84,129.8,7.704]
[1725582305300,7.7013,129.85,129.8,9.24456324]
[1725582305714,20.0,129.84,129.8,7.704]
[1725582306000,20.0,129.84,129.82,7.7029]
[1725582306213,20.0,129.85,129.82,7.7029]
[1725582306381,20.0,129.85,129.81,26.9615]
[1725582307885,20.0,129.85,129.81,19.2582]
[1725582308203,20.0,129.85,129.8,7.704]
[1725582308204,52.7019,129.84,129.8,7.704]
[1725582308404,20.0,129.83,129.8,7.704]
[1725582309500,27.7025,129.83,129.79,7.7046]
[1725582309885,27.7025,129.83,129.8,1.54078862]
[1725582310603,27.7025,129.83,129.79,9.24526206]
[1725582310909,7.7029,129.82,129.78,41.60219822]
[1725582311105,7.7029,129.82,129.78,26.9674]
[1725582312605,7.7045,129.8,129.75,42.4988]
[1725582313103,7.7045,129.8,129.76,7.706]
[1725582313688,7.7045,129.8,129.77,7.7058]
[1725582314292,20.0,129.83,129.78,7.7052]
[1725582314503,20.0,129.85,129.78,7.7052]
[1725582315007,7.7034,129.82,129.78,7.7052]
[1725582315207,20.0,129.81,129.78,7.7052]
[1725582315617,20.0,129.81,129.79,9.24521799]
[1725582315792,20.0,129.82,129.79,9.24521799]
[1725582316190,19.2526,129.86,129.79,19.2617]
[1725582316403,7.7018,129.84,129.8,7.7038]
[1725582318494,7.7026,129.83,129.79,26.9662]
[1725582318708,20.0,129.82,129.79,26.9662]
[1725582319099,20.0,129.82,129.79,28.50687548]
[1725582319519,27.7029,129.82,129.79,19.2617]
[1725582319894,27.7029,129.82,129.79,20.80237511]
[1725582320199,27.7029,129.82,129.8,1.5406714]
[1725582320623,20.0,129.82,129.8,7.7041]
[1725582323401,20.0,129.82,129.79,19.2617]
[1725582323402,27.7029,129.82,129.79,26.9664]
[1725582323914,27.7029,129.82,129.79,28.50711822]
[1725582324222,20.0,129.82,129.8,7.7041]
[1725582324520,20.0,129.83,129.8,7.7041]
[1725582324897,20.0,129.83,129.8,9.244641]
[1725582326810,20.0,129.83,129.8,7.7041]
[1725582327105,20.0,129.83,129.8,9.24463172]
[1725582327797,20.0,129.83,129.81,7.7032]
[1725582328125,20.0,129.86,129.81,7.7032]
[1725582328291,27.701,129.86,129.82,7.7029]
[1725582328500,27.7008,129.86,129.82,9.24323538]
[1725582328709,7.7015,129.85,129.81,9.24347884]
[1725582328906,20.0,129.84,129.81,9.24347884]
[1725582330818,27.7018,129.84,129.81,7.7032]
[1725582331120,20.0,129.84,129.81,7.7032]
[1725582336341,7.7018,129.84,129.81,7.7032]
[1725582337524,7.7018,129.84,129.8,33.5709]
[1725582337710,7.7039,129.81,129.77,7.7055]
[1725582337916,7.7045,129.8,129.76,49.5726]
[1725582338109,19.2546,129.84,129.76,19.266]
[1725582338110,7.7048,129.79,129.76,19.266]
[1725582338617,7.7063,129.77,129.73,49.4574]
[1725582339299,16.4065,129.8,129.72,7.7087]
[1725582339502,7.7075,129.75,129.71,7.7092]
[1725582339810,19.2633,129.78,129.7,41.7542]
[1725582340132,65.0,129.77,129.7,41.7542]
[1725582341427,7.7073,129.75,129.71,7.7094]
[1725582343117,65.0,129.74,129.68,7.7109]
[1725582343322,65.0,129.74,129.67,19.2784]
[1725582343323,65.0,129.74,129.69,7.7106]
[1725582344332,7.7084,129.73,129.69,7.7106]
[1725582345029,7.7084,129.73,129.7,1.54195314]
[1725582346234,7.7084,129.73,129.69,26.9872]
[1725582347135,7.7084,129.73,129.7,7.71]
[1725582351841,7.7084,129.73,129.69,26.987]
[1725582352138,7.7089,129.72,129.69,26.987]
[1725582353022,65.0,129.74,129.69,26.987]
[1725582353023,7.7084,129.73,129.69,26.987]
[1725582353424,7.7084,129.73,129.7,9.25179116]
[1725582353608,20.0,129.74,129.7,7.7099]
[1725582353609,27.7079,129.74,129.7,7.7099]
[1725582354512,20.0,129.74,129.71,26.9829]
[1725582354716,20.0,129.74,129.72,7.7088]
[1725582354911,20.0,129.77,129.72,7.7088]
[1725582356430,20.0,129.77,129.68,19.2768]
[1725582356431,39.2663,129.77,129.68,19.2768]
[1725582356638,7.7083,129.73,129.69,7.7103]
[1725582357337,7.7083,129.73,129.7,7.7099]
[1725582361531,7.7105,129.7,129.66,49.1955]
[1725582361729,19.272,129.73,129.67,7.7117]
[1725582361929,7.7098,129.71,129.67,7.7117]
[1725582362156,20.0,129.7,129.67,7.7117]
[1725582362527,20.0,129.7,129.64,19.284]
[1725582362735,20.0,129.72,129.65,7.7127]
[1725582362927,45.0,129.69,129.64,19.284]
[1725582363131,20.0,129.68,129.64,19.284]
[1725582364146,27.7115,129.68,129.64,26.9976]
[1725582364330,7.7119,129.67,129.64,26.9976]
[1725582365424,27.7114,129.68,129.64,26.9976]
[1725582366223,20.0,129.68,129.65,7.713]
[1725582366425,20.0,129.68,129.66,19.2808]
[1725582366651,7.7104,129.7,129.66,26.993]
[1725582366851,20.0,129.69,129.66,26.993]
[1725582368659,20.0,129.69,129.64,19.2839]
[1725582368825,7.7111,129.69,129.65,7.7129]
[1725582369024,20.0,129.68,129.66,7.7123]
[1725582369637,20.0,129.69,129.66,7.7123]
[1725582372247,20.0,129.69,129.67,7.7118]
[1725582372555,20.0,129.7,129.67,7.7118]
[1725582375228,20.0,129.7,129.68,7.7112]
[1725582375441,20.0,129.71,129.68,19.2769]
[1725582375750,7.7084,129.73,129.69,7.7106]
[1725582376842,7.7089,129.72,129.69,7.7106]
[1725582377058,20.0,129.71,129.66,20.83351634]
[1725582377350,7.7104,129.7,129.66,7.7122]
[1725582379531,7.7104,129.7,129.66,9.25443573]
[1725582380041,7.7104,129.7,129.66,7.7122]
[1725582380250,7.7098,129.71,129.67,7.7118]
[1725582380456,20.0,129.7,129.68,1.5420162]
[1725582380757,20.0,129.7,129.67,7.7118]
[1725582380941,20.0,129.7,129.66,19.2797]
[1725582380942,20.0,129.7,129.68,7.7111]
[1725582381534,20.0,129.7,129.67,9.25372925]
[1725582381936,20.0,129.7,129.67,7.7117]
[1725582382556,20.0,129.7,129.67,9.25373383]
[1725582382737,27.7104,129.7,129.67,1.54203383]
[1725582383893,20.0,129.7,129.67,9.25383383]
[1725582384157,20.0,129.7,129.67,7.7118]
[1725582384353,20.0,129.7,129.68,9.25322786]
[1725582384844,20.0,129.7,129.68,1.54202786]
[1725582385046,20.0,129.7,129.67,7.7115]
[1725582385867,16.2405,129.74,129.68,1.54202836]
[1725582386053,38.5141,129.83,129.68,1.54202836]
[1725582386054,15.6196,129.78,129.7,13.12131634]
[1725582386258,15.6196,129.78,129.71,20.81372435]
[1725582387081,19.2632,129.79,129.72,13.12131634]
[1725582387377,19.2632,129.79,129.71,19.2723]
[1725582387568,20.0,129.78,129.71,19.2723]
[1725582387981,19.2651,129.77,129.7,22.7978]
[1725582388163,20.0,129.76,129.7,22.7978]
[1725582388487,45.0,129.75,129.7,22.7978]
[1725582388665,20.0,129.74,129.7,22.7978]
[1725582389262,20.0,129.74,129.7,42.0728]
[1725582389455,20.0,129.74,129.7,55.19411634]
[1725582389654,20.0,129.76,129.7,55.19411634]
[1725582390385,7.7073,129.75,129.71,7.7095]
[1725582390563,20.0,129.74,129.71,7.7095]
[1725582391167,27.7077,129.74,129.71,7.7095]
[1725582391672,27.7077,129.74,129.7,49.7827]
[1725582391878,27.7077,129.74,129.7,33.4888]
[1725582392389,27.7077,129.74,129.7,26.9849]
[1725582393288,7.7084,129.73,129.7,19.275]
[1725582395085,27.7094,129.72,129.68,7.7111]
[1725582395379,7.7095,129.71,129.67,49.7877]
[1725582400287,7.7102,129.7,129.67,49.7877]
[1725582400482,7.7102,129.7,129.67,19.2783]
[1725582400682,7.7105,129.7,129.66,7.7121]
[1725582401391,7.7105,129.7,129.67,7.7118]
[1725582403683,39.2695,129.74,129.68,7.7112]
[1725582403993,45.0,129.73,129.68,7.7112]
[1725582404180,20.0,129.72,129.68,7.7112]
[1725582405490,7.7096,129.71,129.68,7.7112]
[1725582409301,27.7091,129.72,129.69,7.7105]
[1725582410585,27.7091,129.72,129.68,7.711]
[1725582415980,7.7096,129.71,129.68,7.711]
[1725582416409,7.7096,129.71,129.67,26.9908]
[1725582419408,20.0,129.72,129.67,26.9908]
[1725582419409,7.7101,129.7,129.67,26.9908]
[1725582419903,7.7096,129.71,129.68,7.711]
[1725582420712,27.7091,129.72,129.68,7.711]
[1725582421426,20.0,129.72,129.69,26.9869]
[1725582421794,27.7089,129.72,129.69,26.9869]
[1725582422189,27.7089,129.72,129.69,19.2766]
[1725582425298,7.7097,129.71,129.68,7.711]
[1725582433221,7.7097,129.71,129.67,7.7117]
[1725582433424,7.7097,129.71,129.66,19.2798]
[1725582433425,7.7111,129.69,129.66,19.2798]
[1725582437130,7.7111,129.69,129.66,26.9921]
[1725582437334,7.7103,129.7,129.66,19.2798]
[1725582437507,20.0,129.72,129.68,7.711]
[1725582437712,20.0,129.74,129.68,7.711]
[1725582438110,7.7083,129.73,129.69,28.52891665]
[1725582438317,20.0,129.72,129.69,28.52891665]
[1725582438517,20.0,129.72,129.69,26.987]
[1725582439634,20.0,129.72,129.7,1.54178507]
[1725582440525,20.0,129.72,129.71,19.2737]
[1725582440737,20.0,129.74,129.71,26.9832]
[1725582442637,27.7077,129.74,129.71,26.9832]
[1725582443129,20.0,129.74,129.72,1.5415887]
[1725582444828,20.0,129.74,129.72,7.7088]
[1725582445127,22.6163,129.82,129.73,13.10800338]
[1725582445336,24.0267,129.82,129.78,7.7052]
[1725582445537,16.3234,129.82,129.76,19.2662]
[1725582445723,7.7033,129.82,129.78,7.7053]
[1725582446239,7.7036,129.81,129.77,22.35446949]
[1725582446744,20.0,129.8,129.77,22.35446949]
[1725582446942,7.7042,129.8,129.77,1.54076611]
[1725582447120,7.7042,129.8,129.76,26.9725]
[1725582447521,7.7042,129.8,129.76,28.51350393]
[1725582447737,7.7042,129.8,129.76,26.9725]
[1725582448131,7.7042,129.8,129.76,28.51348862]
[1725582448742,7.7042,129.8,129.76,26.9725]
[1725582450034,7.7042,129.8,129.76,28.51351895]
[1725582451437,7.7042,129.8,129.76,26.9725]
[1725582451636,7.703,129.82,129.78,7.705]
[1725582451834,20.0,129.81,129.78,7.705]
[1725582454542,20.0,129.81,129.76,19.2662]
[1725582454543,27.7037,129.81,129.77,7.7055]
[1725582461872,27.7037,129.81,129.78,9.24610964]
[1725582462371,20.0,129.81,129.78,9.24610964]
[1725582462569,20.0,129.81,129.78,7.7052]
[1725582463355,27.7037,129.81,129.77,7.7057]
[1725582463554,7.7043,129.8,129.76,26.9725]
[1725582463855,7.7059,129.77,129.73,19.2694]
[1725582464166,7.7059,129.77,129.73,26.9773]
[1725582479574,7.7056,129.78,129.75,7.7071]
[1725582479743,20.0,129.77,129.75,7.7071]
[1725582482177,7.7037,129.81,129.78,7.7051]
[1725582482467,7.7037,129.81,129.79,1.5408319]
[1725582482676,2.81157085,129.84,129.79,1.5408319]
[1725582482677,7.7018,129.84,129.8,7.7039]
[1725582482857,15.1642,129.86,129.8,20.8006422]
[1725582483057,7.7015,129.85,129.8,20.8006422]
[1725582484271,20.0,129.84,129.8,28.5045422]
[1725582484680,27.7018,129.84,129.8,28.5045422]
[1725582486460,27.7018,129.84,129.8,26.9641]
[1725582486862,27.7018,129.84,129.81,1.54046311]
[1725582487262,20.0,129.84,129.81,9.24386311]
[1725582488571,20.0,129.84,129.81,7.7034]
[1725582490087,20.0,129.84,129.8,19.2602]
[1725582490389,7.7027,129.83,129.79,7.7045]
[1725582490554,20.0,129.82,129.79,7.7045]
[1725582492371,20.0,129.82,129.8,1.54061967]
[1725582492571,20.0,129.82,129.79,7.7045]
[1725582496474,27.703,129.82,129.78,26.9684]
[1725582497186,27.703,129.82,129.79,9.24519513]
[1725582497187,20.0,129.82,129.79,9.24519513]
[1725582498998,20.0,129.82,129.8,7.7037]
[1725582499176,20.0,129.83,129.8,7.7037]
[1725582499881,20.0,129.83,129.81,1.5404349]
[1725582500580,20.0,129.83,129.8,7.7037]
[1725582500776,27.7023,129.83,129.79,26.9648]
[1725582501187,20.0,129.83,129.78,7.705]
[1725582501386,7.7042,129.8,129.76,26.9709]
[1725582501603,7.7042,129.8,129.74,19.2692]
[1725582501604,7.7062,129.77,129.74,19.2692]
[1725582501904,7.7062,129.77,129.73,28.9616]
[1725582502192,7.7057,129.78,129.73,26.9788]
[1725582502395,27.706,129.77,129.73,19.2705]
[1725582502902,27.706,129.77,129.71,7.7093]
[1725582502903,7.7069,129.76,129.71,7.7093]
[1725582503400,27.7073,129.75,129.7,48.2374]
[1725582503599,20.0,129.74,129.7,48.2374]
[1725582503796,20.0,129.74,129.71,7.7094]
[1725582504095,20.0,129.74,129.72,7.7088]
[1725582504275,20.0,129.76,129.72,7.7088]
[1725582504598,20.0,129.76,129.71,13.10800338]
[1725582504599,27.7067,129.76,129.71,20.81740338]
[1725582504896,27.7067,129.76,129.72,1.54148229]
[1725582505269,20.0,129.76,129.72,9.25028229]
[1725582505985,20.0,129.76,129.73,9.24956054]
[1725582506188,7.7055,129.78,129.74,1.54125918]
[1725582507585,7.7045,129.8,129.75,7.707]
[1725582508800,7.7045,129.8,129.76,1.54093995]
[1725582509028,20.0,129.79,129.76,1.54093995]
[1725582509213,20.0,129.79,129.75,7.707]
[1725582509376,27.7049,129.79,129.74,26.9762]
[1725582510800,27.7049,129.79,129.75,1.54108167]
[1725582511605,27.7049,129.79,129.75,7.7069]
[1725582512202,20.0,129.79,129.71,19.2728]
[1725582512410,7.7067,129.76,129.71,19.2728]
[1725582513399,7.7072,129.75,129.71,26.9821]
[1725582514582,7.7065,129.76,129.72,7.7087]
[1725582514811,20.0,129.75,129.72,7.7087]
[1725582516108,20.0,129.75,129.71,26.982]
[1725582518298,27.7071,129.75,129.71,26.982]
[1725582518512,20.0,129.75,129.68,32.38510338]
[1725582518686,45.0,129.74,129.69,1.54182818]
[1725582519080,20.0,129.73,129.69,9.25212818]
[1725582519707,7.708,129.74,129.69,9.25212818]
[1725582519915,20.0,129.73,129.69,9.25212818]
[1725582521788,20.0,129.73,129.69,7.7103]
[1725582522406,27.7083,129.73,129.69,7.7103]
[1725582524492,7.7096,129.71,129.68,19.2771]
[1725582525389,7.7091,129.72,129.68,19.2771]
[1725582525716,20.0,129.71,129.68,19.2771]
[1725582526521,20.0,129.71,129.68,20.81906811]
[1725582527011,20.0,129.71,129.68,19.2771]
[1725582532306,20.0,129.71,129.69,1.54198193]
[1725582532498,20.0,129.72,129.69,7.7103]
[1725582533815,27.7089,129.72,129.68,26.9881]
[1725582534122,7.7095,129.71,129.68,19.2771]
[1725582534997,7.7095,129.71,129.68,20.8190605]
[1725582535521,27.7092,129.72,129.68,26.9882]
[1725582537820,20.0,129.72,129.68,19.2771]
[1725582538000,20.0,129.72,129.69,1.54175922]
[1725582539508,20.0,129.72,129.7,7.71]
[1725582540224,20.0,129.72,129.69,7.7104]
[1725582540400,27.7089,129.72,129.68,26.988]
[1725582543325,20.0,129.72,129.65,19.2812]
[1725582543508,7.7107,129.69,129.65,26.9938]
[1725582543708,45.0,129.71,129.65,26.9938]
[1725582543709,7.7103,129.7,129.66,7.7124]
[1725582543908,7.7095,129.71,129.68,7.7109]
[1725582544114,20.0,129.7,129.68,7.7109]
[1725582544315,20.0,129.7,129.67,7.7116]
[1725582548332,27.7105,129.7,129.66,19.2799]
[1725582549425,27.7105,129.7,129.67,7.7117]
[1725582549625,27.7105,129.7,129.66,26.992]
[1725582550548,27.7105,129.7,129.66,28.53414899]
[1725582551132,27.7105,129.7,129.67,1.54214215]
[1725582553029,10.0,129.79,129.73,7.7079]
[1725582553237,7.7048,129.79,129.74,1.54116931]
[1725582553417,7.7043,129.8,129.75,7.7071]
[1725582553612,24.2214,129.81,129.76,20.80701672]
[1725582553813,24.2214,129.81,129.77,9.24672226]
[1725582554210,16.5177,129.81,129.76,26.9723]
[1725582554408,7.7043,129.8,129.76,26.9723]
[1725582554632,20.0,129.79,129.76,26.9723]
[1725582555134,27.7049,129.79,129.76,19.266]
[1725582556040,7.7049,129.79,129.76,19.266]
[1725582558742,7.7043,129.8,129.77,1.54116869]
[1725582559035,20.0,129.79,129.76,26.9724]
[1725582559825,20.0,129.79,129.77,1.54101334]
[1725582562625,20.0,129.79,129.76,26.9724]
[1725582564059,27.7048,129.79,129.76,26.9724]
[1725582564943,27.7048,129.79,129.76,19.266]
[1725582565749,7.706,129.77,129.73,41.9988]
[1725582565923,7.706,129.77,129.73,26.9778]
[1725582570727,7.7065,129.76,129.73,26.9778]
[1725582570927,7.7065,129.76,129.7,21.5426]
[1725582570928,7.7082,129.74,129.7,29.2525]
[1725582571128,7.7073,129.75,129.71,7.7094]
[1725582574453,7.7077,129.74,129.71,7.7094]
[1725582577633,7.7077,129.74,129.71,9.25110544]
[1725582577949,45.0,129.78,129.71,13.09921916]
[1725582578131,20.0,129.77,129.74,7.7073]
[1725582578567,20.0,129.77,129.74,9.24861171]
[1725582579069,27.7059,129.77,129.74,9.24861171]
[1725582579435,27.7059,129.77,129.74,1.54131171]
[1725582579634,27.7059,129.77,129.73,26.9773]
[1725582580326,27.7059,129.77,129.74,1.54134857]
[1725582581138,27.7059,129.77,129.73,26.9773]